Workbook

Sheet Portada

Sheet Balance de Comprobación
C2: Fondo de Jubilaciones y Pensiones del Poder Judicial
C4: Balance de Comprobación
C6: Al 30 de Noviembre 2018
C9: ACTIVO
C10: Cuentas Corrientes Y De Ahorro | F10: 2780148935
C11: Inversiones En Valores De Emisores Nacionales | F11: 5.178457662e+11
C12: Cuentas Por Cobrar | F12: 218050077.4
C13: Productos Por Cobrar Sobre Inversiones | F13: 7913858609
C14: Préstamos a Afiliados | F14: 4758536.2
C15: Aportes Por Cobrar A Los Trabajadores | F15: 6257541505
C16: Aportes Por Cobrar Al Patrono | F16: 4324422042
C17: Aportes Por Cobrar Al Estado | F17: 305485817
C18: Otros Aportes Por Cobrar | F18: 254375196.4
C19: Mobiliario Y Equipo
C20: Equipo De Cómputo
C21: (Depreciación Acumulada)
C22: Costo de Programas Informáticos-Software | F22: 7618670
C23: (Amortización Programas Informáticos) | F23: -7618670
C24: GASTOS
C25: Pérdidas por Negociación de Instrumentos Financieros
C26: Pérdidas Por Fluctuación Cambiaria | F26: 4455389362
C27: Pérdidas por Variaciones en la Unidad de Referencia | F27: 11267936.53
C28: Gastos Generales | F28: 513570296.4
C29: PASIVO
C30: Retenciones A Pensionados | H30: 722173048.6
C31: Obligaciones Por Liquidar Empleados | H31: 568605.77
C32: Obligaciones Transitorias por Liquidar | H32: 866233244.9
C33: Retención Por Servicios Recibidos
C34: Cotización Seguro De Enfermedad Y Maternidad | H34: 513509114.7
C35: Provisión Para Pensiones En Curso De Pago | H35: 5.363823473e+11
C36: PATRIMONIO
C37: Aportaciones recibidas | H37: 446292900.5
C38: INGRESOS
C39: Productos Sobre Inversiones De Emisores Nacionales | H39: 3102690945
C40: Intereses Sobre Saldos En Cuentas Bancarias | H40: 15057652.51
C41: Por Negociación de Instrumentos Financieros
C42: Ganancias por Fluctuación Cambiaria | H42: 2506362588
C43: Ganancias por Variaciones en la Unidad de Referencia | H43: 326135297
C44: Ingresos sobre Préstamos de Afiliados | H44: 30712.96
C45: Otros Ingresos | H45: 3233111.46
C49: Sumas Iguales | F49: =SUM(F10:F28) -> 5.448846345e+11 | H49: =SUM(H30:H45) -> 5.448846345e+11
C55: Lic. Luis Guillermo Vásquez Ureña | F55: MBA. María Antonieta Herrera Charraun
C56: Jefe Subproceso Contable | F56: Jefa Proceso Presupuestario Contable
D62: MBA Miguel Ovares Chavarria
D64: Jefe a.i. Macroproceso Financiero Contable
C68: Realizado por:
C69: Licda. Yesenia Flores Chacon
C70: Coordinadora de Unidad I a.i. , Subproceso Contabilidad
C72: Observación: Enlace al Manual de Políticas Contables.

Sheet Cambios Act. Netos Disponibles
B1: Fondo de Jubilaciones y Pensiones
B2: Estado de Cambios en los Activos Netos Disponibles
B3: Por el mes terminado al 30/11/2018
B4: (En colones sin céntimos)
D7: SALDO MENSUAL | G7: SALDO ACUMULADO
C8: NOTAS
B9: SALDO INICIAL | E9: 7026411494 | F9: (1) | H9: 2908712973 | I9: (2)
B11: INGRESOS | E11: =D13+D21 -> 5953510307 | H11: =G13+G21 -> 4.713456163e+10
B13: INGRESOS FINANCIEROS | D13: =SUM(D14:D19) -> 5950277195 | G13: =SUM(G14:G19) -> 4.706445711e+10
B14: Productos sobre Inversiones de Emisores Nacionales | C14: Nota 1 | D14: =+'Nota 1'!H24 -> 3102690945 | G14: =+'Nota 1'!H37 -> 3.271541876e+10
B15: Intereses sobre Saldos en Cuentas Corrientes | C15: Nota 2 | D15: =+'Nota 2'!G21 -> 15057652.51 | G15: =+'Nota 2'!G36 -> 128443862.8
B16: Por negociación de instrumentos financieros | G16: 0
B17: Ganancias por Fluctuación Cambiaria | C17: Nota 3 | D17: =+'Nota 3'!D17 -> 2506362588 | G17: =+'Nota 3'!F17 -> 1.212466703e+10
B18: Ganancias por Variaciones en la Unidad de Referencia | C18: Nota 4 | D18: =+'Nota 4'!D15 -> 326135297 | G18: =+'Nota 4'!F15 -> 2093907643
B19: Ingresos sobre Préstamos a Afiliados y Pensionados | C19: Nota 5 | D19: =+'Nota 5'!J13 -> 30712.96 | G19: =+'Nota 5'!L13 -> 2019814.57
B21: OTROS INGRESOS | D21: 3233111.46 | G21: =58841872.05+3721255.14+2787473.86+1520808+3233111.46 -> 70104520.51
B23: PLAN DE CONTRIBUCIONES | C23: Nota 6 | E23: =SUM(D26:D29) -> 7511676244 | H23: =SUM(G26:G29) -> 7.632896195e+10
B25: RESERVAS EN FORMACION
B26: De los trabajadores | D26: =+'Nota 6'!F15 -> 3196440714 | G26: =+'Nota 6'!H15 -> 3.088517629e+10
B27: Del Patrono | D27: =+'Nota 6'!F16 -> 3343832652 | G27: =+'Nota 6'!H16 -> 3.586506383e+10
B28: Del Estado | D28: =+'Nota 6'!F17 -> 135275272.3 | G28: =+'Nota 6'!H17 -> 1461962592
B29: De los Pensionados | D29: =+'Nota 6'!F18+'Nota 6'!F19 -> 836127606.2 | G29: =+'Nota 6'!H18+'Nota 6'!H19 -> 8116759244
B30: Rendimientos Acumulados | D30: 0
B32: UTILIDAD ( PERDIDA DEL EJERCICIO ) | D32: 0
B34: TOTAL ADICIONES | E34: =E11+E23 -> 1.346518655e+10 | H34: =H11+H23 -> 1.234635236e+11
B36: SALIDA DE RECURSOS | E36: =D37 -> 1.409179484e+10 | H36: =G37 -> 1.104525617e+11
B37: Por Nuevos Pensionados | C37: Nota 7 | D37: =+'Nota 7'!D16 -> 1.409179484e+10 | G37: =+'Nota 7'!F16 -> 1.104525617e+11
B39: GASTOS | E39: =D41+D46 -> 4980227595 | H39: =G41+G46 -> 1.450009924e+10
B41: GASTOS FINANCIEROS | D41: =D43+D44 -> 4466657299 | G41: =SUM(G43:G44) -> 8978787192
B42: Pérdida por Negociación de Inst. Financ. | D42: 0 | G42: 0
B43: Pérdida por Fluctuación Cambiaria | C43: Nota 8 | D43: =+'Nota 8'!D16 -> 4455389362 | G43: =+'Nota 8'!F16 -> 8617413964
B44: Pérdida por Variaciones en la Unidad de Referencia | C44: Nota 9 | D44: =+'Nota 9'!D15 -> 11267936.53 | G44: =+'Nota 9'!F15 -> 361373227.9
B46: GASTOS GENERALES | C46: Nota 10 | D46: =+'Nota 10'!D16 -> 513570296.4 | G46: =+'Nota 10'!F16 -> 5521312051
B48: TOTAL DE DEDUCCIONES | E48: =E36+E39 -> 1.907202243e+10 | H48: =H36+H39 -> 1.249526609e+11
B50: ACTIVOS NETOS DISPONIBLES PARA BENEFICIOS
B51: FUTUROS AL FINAL DEL PERIODO (3) | E51: =E9+E34-E48 -> 1419575612 | H51: =H9+H34-H48 -> 1419575612
B54: Observaciones:
B55: (1) Saldo inicial mensual: Corresponde al total de activos disponibles para beneficios futuros al final del mes de octubre 2018.
B56: (2) Saldo acumulado: Pertenece al total de activos disponibles de beneficios futuros al final del año anterior (Diciembre 2017).
B57: (3) Activos Netos Disponibles para Beneficios Futuros al Final del Periodo: Corresponde a la suma del saldo inicial mas el total de adiciones, menos el total de deducciones.
B61: Lic. Luis Guillermo Vásquez Ureña | E61: MBA. María Antonieta Herrera Charraun
B62: Jefe Subproceso Contable | E62: Jefa Proceso Presupuestario Contable
C68: MBA Miguel Ovares Chavarria
C70: Jefe a.i. Macroproceso Financiero Contable
B75: Realizado por:
B76: Licda. Yesenia Flores Chacon
B77: Coordinadora de Unidad I a.i. , Subproceso Contabilidad
B80: Observación: Enlace al Manual de Políticas Contables.

Sheet Act. Netos Dispon. Beneficios
B2: Fondo de Jubilaciones y Pensiones del Poder Judicial
B3: Estado de Activos Netos Disponibles para Beneficios
B4: AL 30/11/2018
B5: (En colones sin céntimos)
C6: NOTAS
B7: DISPONIBILIDADES | E7: =D8 -> 2780148935
B8: Cuentas Corrientes y de Ahorro | C8: Nota 11 | D8: =+'Nota 11'!D23 -> 2780148935
B10: INVERSIONES EN VALORES | E10: =D12 -> 5.178457662e+11
B11: EN CURSO DE PAGO
B12: Inversiones en Valores de Emisores Nacionales | C12: Nota 12 | D12: =+'Nota 12'!D28 -> 5.178457662e+11
B14: CUENTAS Y PRODUCTOS POR COBRAR SOBRE INVERSIONES | E14: =SUM(D16:D17) -> 8131908687
B15: PROVISION PARA PENSIONES EN CURSO DE PAGO
B16: Cuentas Por Cobrar | C16: Nota 13 | D16: =+'Nota 13'!D16 -> 218050077.4
B17: Productos Por Cobrar Sobre Inversiones De Emisores Nacionales | C17: Nota 14 | D17: =+'Nota 14'!D24 -> 7913858609
B19: PRESTAMOS A AFILIADOS Y PENSIONADOS | E19: =D20 -> 4758536.2
B20: Préstamos por Cobrar | C20: Nota 15 | D20: =+'Nota 15'!D24 -> 4758536.2
B21: Productos por Cobrar sobre Préstamos | C21: Nota 15 | D21: 0
B23: APORTES POR COBRAR | E23: =SUM(D24:D27) -> 1.114182456e+10
B24: Aportes Por Cobrar A Los Trabajadores | C24: Nota 16 | D24: =+'Nota 16'!J12 -> 6257541505
B25: Aportes Por Cobrar Al Patrono | C25: Nota 16 | D25: =+'Nota 16'!J16 -> 4324422042
B26: Aportes Por Cobrar Al Estado | C26: Nota 16 | D26: =+'Nota 16'!J19 -> 305485817
B27: Otros Aportes Por Cobrar | C27: Nota 16 | D27: =+'Nota 16'!J22 -> 254375196.4
B29: PROPIEDAD, PLANTA Y EQUIPO | E29: 0
B30: Mobiliario y Equipo | D30: 0
B31: Equipo de Cómputo | D31: 0
B32: (Depreciación Acumulada) | D32: 0
B34: OTROS ACTIVOS | E34: 0
B35: Intangibles | C35: Nota 17 | D35: 0
B37: ACTIVO TOTAL | E37: =E7+E10+E14+E19+E23 -> 5.399044069e+11
B39: CUENTAS POR PAGAR | E39: =SUM(D40:D42) -> 1588974899
B40: Retenciones A Pensionados | C40: Nota 18 | D40: =+'Nota 18'!E18 -> 722173048.6
B41: Obligaciones Por Liquidar Empleados y Exempleados | C41: Nota 19 | D41: =+'Nota 19'!D19 -> 568605.77
B42: Obligaciones Transitorias por Liquidar | C42: Nota 20 | D42: =+'Nota 20'!D26 -> 866233244.9
B44: PROVISIONES | E44: =D45 -> 513509114.7
B45: Cotización Seguro De Enfermedad y Maternidad | C45: Nota 21 | D45: =+'Nota 21'!F12 -> 513509114.7
B47: PROVISIONES PARA PENSIONES EN CURSO DE PAGO | C47: Nota 22 | E47: =+'Nota 22'!J16 -> 5.363823473e+11
B49: PASIVO TOTAL | E49: =E47+E44+E39 -> 5.384848313e+11
B51: ACTIVOS NETOS DISPONIBLES PARA BENEFICIOS FUTUROS (1) | E51: =+'Cambios Act. Netos Disponibles'!E51 -> 1419575612
B53: CUENTAS DE ORDEN | C53: Nota 23 | E53: =+'Nota 23'!D12 -> 291806472.8
B55: Observaciones:
B56: (1) Activos Netos Disponibles para Beneficios Futuros al Final del Periodo: Corresponde al total de activo menos el total de pasivo.
B60: Lic. Luis Guillermo Vásquez Ureña | C60: MBA. María Antonieta Herrera Charraun
B61: Jefe Subproceso Contable | C61: Jefa Proceso Presupuestario Contable
B66: MBA Miguel Ovares Chavarria
B67: Jefe a.i. Macroproceso Financiero Contable
B72: Realizado por:
B73: Licda. Yesenia Flores Chacon
B74: Coordinadora de Unidad I a.i. , Subproceso Contabilidad
B76: Observación: Enlace al Manual de Políticas Contables.

Sheet Nota 1
B2: Nota 1:
B3: Productos sobre Inversiones de Emisores Nacionales
B5: al 30 de Noviembre de 2018
B9: De acuerdo con lo establecido por la SUPEN, este rubro se encuentra conformado por los intereses devengados del mes producto de las inversiones en títulos valores, la amortización de los descuentos, las comisiones pagadas y primas en títulos valores.
B13: MENSUAL
B15: PRODUCTOS SOBRE INVERSIONES DE VALORES NACIONALES | D15: COLONES | F15: DOLARES | H15: TOTAL
B17: Intereses devengados | D17: 2928815003 | F17: 216835497.2 | H17: 3145650500
B18: Amortización de descuento | D18: 5169246.42 | F18: 4172057.07 | H18: 9341303.49
B19: Comisión devengada | D19: 0 | F19: 0 | H19: 0
B20: Amortización de prima | D20: -151363505.5 | F20: -1096814.07 | H20: -152460319.6
B21: Otros intereses devengados | D21: 0 | F21: 0 | H21: 0
B22: Ingresos por Dividendos | D22: 0 | F22: 100159460.9 | H22: 100159460.9
B24: TOTAL DE PRODUC. SOBRE INVERS. DE VALORES NACIONALES. | D24: =SUM(D17:D22) -> 2782620744 | F24: =SUM(F17:F23) -> 320070201.1 | H24: =SUM(H17:H23) -> 3102690945
B26: ACUMULADO
B28: PRODUCTOS SOBRE INVERSIONES DE VALORES NACIONALES | D28: COLONES | F28: DOLARES | H28: TOTAL
B30: Intereses devengados | D30: 3.100044463e+10 | F30: 2150567172 | H30: =D30+F30 -> 3.31510118e+10
B31: Amortización de descuento | D31: 47739941.29 | F31: 23271247.95 | H31: 71011189.24
B32: Comisión devengada | D32: -3691991.93 | F32: -553425.46 | H32: -4245417.39
B33: Amortización de prima | D33: -1613180712 | F33: -11619853.79 | H33: -1624800566
B34: Otros intereses devengados | D34: 0 | F34: 0 | H34: 0
B35: Ingresos por Dividendos | D35: 0 | F35: 1122441752 | H35: 1122441752
B37: TOTAL DE PRODUC. SOBRE INVERS. DE VALORES NACIONALES. | D37: =SUM(D30:D36) -> 2.943131187e+10 | F37: =SUM(F30:F36) -> 3284106893 | H37: =SUM(H30:H36) -> 3.271541876e+10

Sheet Nota 2
C2: Nota 2:
C3: Intereses sobre Saldos en Cuentas Corrientes
C5: =+'Nota 1'!B5 -> al 30 de Noviembre de 2018
C7: Como resultado de los saldos que se mantienen en las cuentas corrientes del Banco Nacional de Costa Rica, Banco de Costa Rica y Banco Popular, al cierre del presente mes los intereses sobre saldos en cuentas corrientes son los siguientes:
C10: Mensual
C12: Cuenta Corriente | E12: Banco | G12: Intereses Ganados en el Periodo
C14: 1234-0 | E14: Banco Nacional de Costa Rica | G14: 1459.1
C15: 229-32-9 | E15: Banco de Costa Rica | G15: 14897860.34
C16: 18-1019277 | E16: Banco Popular y de Desarrollo Comunal | G16: 811.68
C17: 174961-7 | E17: Banco de Costa Rica | G17: 0
C18: 1914-1 $ | E18: Banco Popular y de Desarrollo Comunal | G18: 0
C19: 112247-9 $ | E19: Banco de Costa Rica | G19: 157521.39
C21: Total | G21: =SUM(G14:G20) -> 15057652.51
C24: Acumulado
C26: Cuenta Corriente | E26: Banco | G26: Intereses Ganados en el Periodo
C28: 1234-0 | E28: Banco Nacional de Costa Rica | G28: 7693.15
C29: 229-32-9 | E29: Banco de Costa Rica | G29: 127337026.8
C30: 18-1019277 | E30: Banco Popular y de Desarrollo Comunal | G30: 13682.89
C31: 174961-7 | E31: Banco de Costa Rica | G31: 0.35
C32: 1914-1 $ | E32: Banco Popular y de Desarrollo Comunal
C33: 112247-9 $ | E33: Banco de Costa Rica | G33: 1085459.64
C36: Total | G36: =SUM(G28:G35) -> 128443862.8
L51: 0

Sheet Nota 3
B2: Nota 3:
B3: Ganancias por Fluctuación Cambiaria
B5: =+'Nota 1'!$B$5:$H$5 -> al 30 de Noviembre de 2018
B8: Se registra la ganancia generada en las partidas de los estados financieros cuando el tipo de cambio para la valuación de los activos en dólares, emitido por el Banco Central de Costa Rica, experimenta una tendencia al alza, provocando la ganancia en el valor de los rubros que componen estos estados financieros.
B10: Es importante señalar que el tipo de cambio utilizado para la valoración de las inversiones en dólares y cuentas relacionadas, así como de los movimientos de las cuentas bancarias en dólares es el tipo de cambio para el sector público no bancario, de conformidad con lo establecido en la Ley Orgánica del Banco Central de Costa Rica (BCCR) en su artículo 89.
B12: Cuenta | D12: Mes | F12: Acumulado
B13: Por Cuentas Corrientes | D13: 7566940.47 | F13: 31052353.58
B14: En Inversiones En Valores De Emisores Nacionales $ | D14: 2477013230 | F14: 1.199191343e+10
B15: Por Cuentas Por Cobrar | D15: 24415.08 | F15: 6577086.84
B16: Por Productos Por Cobrar Sobre Inversion | D16: 21758002.01 | F16: 95124157.45
B17: Ganancia Total Generada | D17: =SUM(D13:D16) -> 2506362588 | F17: =SUM(F13:F16) -> 1.212466703e+10

Sheet Nota 4
B2: Nota 4:
B3: Ganancias por Variaciones en la Unidad de Referencia
B5: =+'Nota 1'!$B$5:$H$5 -> al 30 de Noviembre de 2018
B8: Ganancias en virtud de la colocación de recursos a través de Títulos de Unidades de Desarrollo (TUDES) que ofrece el Ministerio de Hacienda a largo plazo.
B10: Los Tudes, son títulos valores expresados en unidades de desarrollo, éstas unidades corresponden a un índice calculado por la Superintendencia General de Valores, con base a la variación registrada en el Índice de Precios al Consumidor del mes anterior. Al vencimiento de los cupones y del principal se cancelan en colones, por lo que la ganancia o la pérdida en los títulos valores va a depender del comportamiento de la inflación y por ende, de la variación en el valor de la unidad de desarrollo. Mensualmente se realiza el ajuste de las inversiones de acuerdo con el valor de la unidad de desarrollo al final del mes, a fin de que se actualice su valor, reflejando una pérdida o ganancia.
B13: Cuenta | D13: Mes | F13: Acumulado
B14: En valores emitidos por el Gobierno | D14: 326135297 | F14: 2093907643
B15: Ganancia Total Generada | D15: =SUM(D14:D14) -> 326135297 | F15: =SUM(F14:F14) -> 2093907643

Sheet Nota 5
B2: Nota 5:
B3: Ingresos sobre Préstamos a Afiliados y Pensionados
B5: =+'Nota 1'!$B$5:$H$5 -> al 30 de Noviembre de 2018
B8: Constituye el interés devengado por el crédito otorgado a la Asociación Nacional de Empleados Judiciales (ANEJUD), según contrato suscrito en diciembre de 2008 por ¢1,000,000,000 (sin número de contrato), entre ANEJUD y el Consejo Superior del Poder Judicial, en su condición de administrador de este Fondo.
B11: Total de Préstamo | D11: Entidad | F11: Plazo | H11: Tasa actual | J11: Ingreso Por Interes mensual | L11: Ingreso Por Interes Acumulado
B13: 1000000000 | D13: ANEJUD | F13: 10 años | H13: 0.0808 | J13: 30712.96 | L13: 2019814.57

Sheet Nota 6
B2: Nota 6:
B3: PLAN DE CONTRIBUCIONES
B5: =++'Nota 1'!$B$5:$H$5 -> al 30 de Noviembre de 2018
B9: Comprende los aportes realizados por el Poder Judicial en su calidad de Patrono y Estado, los cuales se aplican sobre los salarios devengados por los servidores judiciales.
B11: Asimismo, está constituido por la contribución de los empleados, jubilados y pensionados judiciales, a los cuales en la actualidad se les deduce de su salario, jubilación y pensión.
B13: Aportes | D13: Porcentajes | F13: Mensual | H13: Acumulado
B15: Trabajadores | D15: 11% y 13% | F15: 3196440714 | H15: 3.088517629e+10
B16: Patrono | D16: 0.1436 | F16: 3343832652 | H16: 3.586506383e+10
B17: Estado | D17: 0.0058 | F17: 135275272.3 | H17: 1461962592
B18: Jubilados y Pensionados | D18: 11% y 13% | F18: 762917257.6 | H18: 7670466343
B19: Contribución Solidaria | D19: - | F19: 73210348.55 | H19: 446292900.5
B21: Total Aportes | F21: =SUM(F15:F19) -> 7511676244 | H21: =SUM(H15:H19) -> 7.632896195e+10
B24: Notas:
B26: 1-) Mediante Acuerdo del Consejo Superior N° 2-2018, art I, se autoriza a disminuir el porcentaje del aporte estatal, a partir del mes de enero 2018 pasando de 1.24% a 0.58%, lo anterior por cuanto el Ministerio de Hacienda recortó del Presupuesto del Poder Judicial la suma de ¢1,200,000,000 (Mil doscientos millones de colones).
B28: 2-) Mediante Acuerdo del Consejo Superior, sesión N°26-2018 del 5/04/2018, en su punto tercer indica: "[...] modificar el acuerdo tomado en sesión N°2-18 del 11/01/2018, art I, por lo que deberá la Dirección de Gestión Humana registrar como porcentaje del aporte estatal al Fondo de Jubilaciones y Pensiones el definido por la Caja Costarricense del Seguro Social (CCSS)". Según lo definido en este acuerdo el porcentaje regresa al 1.24% establecido en Decreto Ejecutivo N° 39202-MTSS-H en su artículo 2, publicado en la Gaceta N° 170 del martes 01 de setiembre del 2015.
B30: 3-) Mediante la publicación de la Ley 9544, que reforma el Regimen de Jubilaciones y Pensiones del Poder Judicial y Acuerdo del Consejo Superior Sesión N°46-18 celebrada el 22/05/2018, art VI, se solicita realizar a partir de esta fecha el incremento al aporte obrero del 11% al 13%, así como el rebajo de la contribución especial, solidaria y redistributiva a las personas jubiladas y pensionadas, conforme el articulo 236 de esta Ley.
B32: 4-) La Dirección de Gestión Humana mediante oficios 006-CP-DGH-2018, 009-CP-DGH-2018, 011-CP-DGH-2018, 012-C-DGH-2018, 0017-CP-DGH-2018 , 0018-CP-DGH-2018, 0019-CP-DGH-2018, 0022-CP-DGH-2018, 0023-CP-DGH-2018 y 0025-CP-DGH-2018 remiten la información equivalente al 0.66% para los meses de Enero a Noviembre del año 2018, con el fin de revelar el detalle de la cuenta por cobrar por la diferencia porcentual hasta que se modifiquen los parametros a nivel de sistemas:
D34: Mes | F34: Monto
D35: Enero | F35: 120402999.9
D36: Febrero | F36: 140520637.7
D37: Marzo | F37: 136148891.6
D38: Abril | F38: 135077110.6
D39: Mayo | F39: 137614704.2
D40: Junio | F40: 137617040.8
D41: Julio | F41: 137959636.9
D42: Agosto | F42: 139260368
D43: Setiembre | F43: 139779141.1
D44: Octubre | F44: =139004094.93+52384.13+38462.28 -> 139094941.3
D45: Noviembre | F45: 141560208.9
D46: Total | F46: =SUM(F35:F45) -> 1505035681

Sheet Nota 7
B2: Nota 7:
B3: SALIDA DE RECURSOS
B5: =+'Nota 6'!B5:H5 -> al 30 de Noviembre de 2018
B8: Corresponde al traslado de todos los recursos de la cuenta patrimonial “Reserva en Formación” a la cuenta Provisión para Pensiones en Curso de Pago”, por ende todos los recursos generados de los aportes, así como los rendimientos obtenidos por las inversiones se continúan registrando en la Provisión Para Pensiones en Curso de Pago.
D11: Mensual | F11: Acumulado
B13: Aportes | D13: 7438465896 | F13: 7.588266905e+10
B14: Rendimientos | D14: 6653328942 | F14: 3.456989265e+10
B16: TOTAL | D16: =SUM(D13:D14) -> 1.409179484e+10 | F16: =SUM(F13:F14) -> 1.104525617e+11

Sheet Nota 8
B2: Nota 8:
B3: Pérdida por Fluctuación Cambiaria
B5: =+'Nota 7'!B5:F5 -> al 30 de Noviembre de 2018
B8: Corresponde a la pérdida generada en cuentas corrientes, inversiones y cuentas relacionadas cuando el tipo de cambio para la valuación de los activos en dólares, emitido por el Banco Central de Costa Rica.
B11: Cuenta | D11: Mes | F11: Acumulado
B12: Por Cuentas Corrientes | D12: 8111659.16 | F12: 29121483.52
B13: En Inversiones En Valores De Emisores Nacionales $ | D13: 4402734703 | F13: 8505409021
B14: Por Cuentas Por Cobrar | D14: 392335.29 | F14: 465057.63
B15: Por Productos Por Cobrar Sobre Inversion | D15: 44150665.31 | F15: 82418401.59
B16: Pérdida Total Generada | D16: =SUM(D12:D15) -> 4455389362 | F16: =SUM(F12:F15) -> 8617413964

Sheet Nota 9
B2: Nota 9:
B4: Pérdida por Variaciones en la Unidad de Referencia
B6: =+'Nota 8'!B5:F5 -> al 30 de Noviembre de 2018
B9: Pérdida generada por la variación en la unidad de referencia de las Unidades de Desarrollo (UDES), relativa a los recursos invertidos por el Fondo a través de títulos en UDES (TUDES) que ofrece el Ministerio de Hacienda a largo plazo.
B11: Conforme lo establece el manual de cuentas de SUPEN se registra la pérdida contable producto de la disminución en la unidad de referencia en los rubros de valor facial de las inversiones en TUDES, prima amortizada y el descuento recibido.
B13: Cuenta | D13: Mes | F13: Acumulado
B14: En valores emitidos por el Gobierno | D14: 11267936.53 | F14: 361373227.9
B15: Pérdida Total Generada | D15: =SUM(D14:D14) -> 11267936.53 | F15: =SUM(F14:F14) -> 361373227.9

Sheet Nota 10
B2: Nota 10:
B3: GASTOS GENERALES
B5: =+'Nota 9'!B6:F6 -> al 30 de Noviembre de 2018
B8: Esta cuenta agrupa varias partidas, las cuales se describen a continuación:
B10: GASTOS GENERALES | D10: MENSUAL | F10: ACUMULADO
B12: Servicios Bancarios | D12: 67618.61 | F12: 740064.9
B13: Cotización Seguro De Enfermedad y Maternidad | D13: 513502524.1 | F13: 5519858906
B14: Gastos Diversos | D14: 153.68 | F14: 713080.03
B16: TOTAL DE GASTOS GENERALES | D16: =SUM(D12:D15) -> 513570296.4 | F16: =SUM(F12:F15) -> 5521312051
B18: Gastos por servicios bancarios:
B19: Corresponde a gastos por comisiones bancarias cobradas por el Banco Nacional , lo anterior a raíz de conclusión “Convenio Institucional entre el Poder Judicial y la referida Entidad Bancaria”, dichos gatos son del conocimiento de la Dirección Ejecutiva, según oficios DGBI-SML-25-2016, 2232-DE-2016 y 2342-DE-2016.
B21: Cotización Seguro de Enfermedad y Maternidad:
B22: Carga social en la que incurre el Fondo como Patrono, con la Caja Costarricense del Seguro Social, por concepto de Enfermedad y Maternidad, correspondiente al 8.75% sobre las jubilaciones y pensiones canceladas.
B24: Gastos diversos
B25: Corresponde a diversos ajustes relacionados principalmente con las inversiones y cuentas relacionadas.

Sheet Nota 11
B2: Nota 11:
B3: Cuentas Corrientes y de Ahorro
B5: =+'Nota 10'!B5:F5 -> al 30 de Noviembre de 2018
B8: El saldo en cuentas corrientes bancarias que mantiene el Fondo de Jubilaciones en colones y en dólares americanos son los siguientes:
B10: CUENTAS CORRIENTES Y DE AHORRO PROV. PARA PENSIONES EN CURSO DE PAGO | D10: TOTAL ¢ | F10: TIPO DE CAMBIO | H10: TOTAL $
B12: Banco Nacional de C.R. Cta 1234-0 | D12: 169110.37
B13: Banco de Costa Rica Cta 229-32-9 | D13: 2144722809
B14: Banco de Costa Rica Cta 174961-7 | D14: 99000
B15: Banco Popular Cta 1019277-0 | D15: 16656642.97
B16: Banco Nacional de C.R. 2413-8 | D16: 0
B17: Banco de Costa Rica 349803-4 | D17: 1099.86
B18: Banco de Costa Rica 349824-7 | D18: 42.15
B19: Banco de Costa Rica Cta. 112247-9 $ | D19: 617842598.5 | F19: 602.23 | H19: =+D19/F19 -> 1025924.644
B20: Banco Nacional de C.R. Cta 601227-7 $ | D20: 350708.65 | F20: =F19 -> 602.23 | H20: =+D20/F20 -> 582.3500158
B21: Banco Popular Cta 1914-1 $ | D21: 306923.18 | F21: =F20 -> 602.23 | H21: =+D21/F21 -> 509.6444548
B23: TOTAL EN CUENTAS CORRIENTES Y DE AHORRO | D23: =SUM(D12:D21) -> 2780148935 | H23: =SUM(H19:H21) -> 1027016.639

Sheet Nota 12
B2: Nota 12:
B3: Inversiones en Valores de Emisores Nacionales
B5: =+'Nota 11'!B5:H5 -> al 30 de Noviembre de 2018
B8: Dicho rubro resume los diferentes movimientos de inversiones en colones y dólares emitidas por el Gobierno de Costa Rica tales como el Ministerio de Hacienda, Banco Central de Costa Rica, Banco de Costa Rica, el Banco Nacional de Costa Rica, Banco Popular y de Desarrollo Comunal e Instituto Costarricense de Electricidad, considerando el registro de la inversión al costo de adquisición (Valor Facial + Primas – Descuentos).
B10: COLONES
B12: Inv. Valor Facial | D12: 4.449131352e+11
B13: Primas | D13: 9383774697
B14: Descuentos | D14: -392726343.4
B16: SALDO INVERSIONES EN COLONES | D16: =SUM(D12:D14) -> 4.539041836e+11
B19: SALDO DÓLARES | F19: TIPO DE CAMBIO | H19: SALDO EN COLONES
B21: Inv. Valor Facial | D21: 69230825.43 | F21: 602.23 | H21: 4.294595794e+10
B22: Primas | D22: 70922.12775 | F22: 602.23 | H22: 43995123.51
B23: Descuentos | D23: -325247.7413 | F23: 602.23 | H23: -201760931.3
B24: Títulos de Participación | D24: 34100221.59 | F24: 602.23 | H24: 2.115339046e+10
B26: SALDO INVERSIONES EN DÓLARES (COLONIZADO) | D26: =SUM(D21:D24) -> 103076721.4 | H26: =SUM(H21:H24) -> 6.394158259e+10
B28: TOTAL GENERAL: | D28: =+D16+H26 -> 5.178457662e+11

Sheet Nota 13
B2: Nota 13:
B3: CUENTAS POR COBRAR
B5: =+'Nota 12'!B5:H5 -> al 30 de Noviembre de 2018
B8: En esta cuenta se registran aquellas partidas que debe recuperar el Fondo y se conforma por los siguientes conceptos:
B10: Cuentas por Cobrar
B12: Títulos vencidos pendientes de cobro | D12: 6383993.29
B13: Impuesto Sobre La Renta Por Cobrar | D13: 211627782.4
B14: Sumas Pend. De cobrar | D14: 38301.71
B16: Saldo: | D16: =D12+D13+D14 -> 218050077.4
B19: 1) Títulos y Cupones de inversión vencidos pendientes de cobro, que en virtud de que el cierre de mes corresponde a un día no hábil, las entidades bancarias realizan el pago de estos el día hábil siguiente, para este mes esta cuenta no presenta saldo.
B21: 2) Corresponden aquellas sumas que debe recuperar el Régimen por concepto de exención del 8% del impuesto sobre la renta de los títulos valores, que por su situación particular, no es posible cobrarlos inmediatamente con el vencimiento de los cupones
B23: 3) En esta cuenta se registrará las cuentas por cobrar, generadas de la captación de inversiones, por comisiones pagadas de más, intereses moratorios u otros.

Sheet Nota 14
B2: Nota 14:
B4: Productos por cobrar sobre Inversiones de Emisores Nacionales
B6: =+'Nota 13'!B5:D5 -> al 30 de Noviembre de 2018
B8: La cuenta se conforma por el registro de:
B10: · La parte proporcional de los intereses devengados por las inversiones con cupones en títulos valores, que fueron adquiridos por el Fondo, acreditándose a la contrapartida de “Intereses Devengados”.
B12: · Los intereses que se acumulan al costo de las inversiones del Mercado Primario y Secundario, donde se adquieren títulos valores de primera y segunda mano, con cupones de intereses corridos, los cuales se suman a los desembolsos que realiza el Fondo para la adquisición de esos valores, y que al vencimiento del cupón son reembolsados.
B14: Productos por cobrar sobre Inversiones
B16: Sobre Valores Emitidos Por El Banco Central | D16: 359463140.2
B17: Sobre Valores Emitidos Por El Gobierno | D17: 6094508901
B18: Sobre Valor. Emit. otras Ent Pub. no Fininancieras | D18: 235492501.6
B19: Sobre Valores Emitidos Por Bancos Comerciales | D19: 649158689.6
B20: Sobre Val. Emit. Bcos. Pub. Ley. Especiales | D20: 116269453.1
B21: Sobre Val. Emit. Bcos. Bancos Privados | D21: 282969326.2
B22: Dividendos por Cobrar | D22: 175996597.9
B24: Saldo | D24: =SUM(D16:D23) -> 7913858609

Sheet Nota 15
B2: Nota 15:
B3: Préstamos por Cobrar
B5: =+'Nota 14'!B6:D6 -> al 30 de Noviembre de 2018
B8: Corresponde al saldo del préstamo por la suma de ¢1,000,000,000 concedido a la Asociación Nacional de Empleados Judiciales (ANEJUD) en apego de lo dispuesto en el artículo 238 de la Ley Orgánica del Poder Judicial, como se detalla:
B10: SUMAS GIRADAS A: | D10: MONTO
B12: ANEJUD: Débito No. 2863 de la Cta 174961-7 BCR el 9 de diciembre de 2008 (Autorizado por la Dirección Ejecutiva oficio No.9488-DE-08) | D12: 166244019.2
B13: ANEJUD: Débito No. 20806860 de la Cta 1234-0 BNCR el 9 de diciembre de 2008 (Autorizado por la Dirección Ejecutiva oficio No.9488-DE-08) | D13: 410921974.9
B14: ANEJUD: Débito No. 379 de la Cta 229-32-9 BCR el 10 de febrero de 2009 (Autorizado por la Dirección Ejecutiva con oficio No. 1123-DE-2009 ). El desembolso autorizado por esa Dirección Ejecutiva es por ¢422.834.006 de los cuales y a solicitud de ANEJUD con oficio del 10 de febrero de 2009 a Don Walter Jiménez Sorio, Jefe del Departamento Financiero Contable en su oportunidad, se deduce la primera cuota de intereses cancelada por adelantado de ¢6.876.239. El total girado con el débito No. 379 es ¢415.957.767. | D14: 422834006
B16: TOTAL DE LOS DESEMBOLSOS | D16: =SUM(D12:D14) -> 1000000000
B18: Menos. Amortizaciones | D18: 995241463.8
B20: Saldo del préstamo | D20: =+D16-D18 -> 4758536.2
B22: Mas: Intereses por cobrar
B24: TOTAL POR COBRAR | D24: =+D20+D22 -> 4758536.2
B27: El contrato para dicho préstamo se firmó en diciembre 2008 (contrato sin número) del cual ya se giró la totalidad de los recursos a esa entidad.
B28: Para los efectos de este crédito, se establecen intereses corrientes conforme se indica en la cuarta cláusula del contrato que dice:
B30: Tipo de interés corriente: Intereses iguales o superiores a los que recibiría el Fondo de Jubilaciones del Poder Judicial por inversiones en títulos valores del sector público, revisable semestralmente, según lo establece el artículo 238 de la Ley Orgánica del Poder Judicial y lo dispuesto por la Corte Plena en sesión celebrada el 15-12-03 artículo XXXIX.

Sheet Nota 16
B2: Nota 16:
B3: APORTES POR COBRAR
B5: =+'Nota 15'!B5:D5 -> al 30 de Noviembre de 2018
B8: Corresponden a los aporte de los trabajadores, del patrono, del estado y jubilados-Pensionados que se detallan a continuación:
B10: Nota | D10: Sub-nota | F10: APORTES POR COBRAR | H10: Detalle | J10: Total
B12: 16.1 | F12: Aporte por cobrar a los trabajadores | J12: =SUM(H13:H15) -> 6257541505
D13: 16.1.1 | F13: Aporte Ordinario | H13: 1421203875
D14: 16.1.2 | F14: Aporte Ordinario S .Escolar | H14: 2331666146
D15: 16.1.3 | F15: Aporte Reconocimiento de tiempo servido | H15: 2504671484
B16: 16.2 | F16: Aportes por cobrar al Patrono | J16: =SUM(H17:H18) -> 4324422042
D17: 16.2.1 | F17: Aportes Por Cobrar Poder Jud.-Patrono | H17: 1565672839
D18: 16.2.2 | F18: Apor. x Cobrar Poder Jud.-Patrono (S.E) | H18: 2758749204
B19: 16.3 | F19: Aportes por cobrar al Estado | J19: =SUM(H20:H21) -> 305485817
D20: 16.3.1 | F20: Aportes Por Cobrar Poder Jud.-Estado | H20: 63315601.98
D21: 16.3.2 | F21: Apor. x Cobrar Poder Jud.-Estado (S.E) | H21: 242170215.1
B22: 16.4 | F22: Otros aportes por cobrar | J22: =SUM(H23:H26) -> 254375196.4
D23: 16.4.1 | F23: Sumas canceladas de más a Jubilados y Pensionados | H23: 148401860.6
D24: 16.4.2 | F24: Aportes Reconocimiento de Tiempo Servido Fuera del Poder Judicial (RTSFPJ) | H24: 4541101.25
D25: 16.4.3 | F25: Otros aportes por cobrar entidades deductoras | H25: 3966709.84
D26: 16.4.4 | F26: Sumas canceladas de más a Jubilados y Pensionados (Aguinaldo) | H26: 97465524.72
F28: TOTAL | J28: =SUM(J12:J26) -> 1.114182456e+10
B32: 16.1 Aportes por cobrar a los trabajadores
B33: Este grupo contempla las sumas por cobrar proveniente de la estimación mensual del salario escolar a los servidores activos del Poder Judicial. Adicionalmente, incluye los aportes por cobrar de las obligaciones por reconocimiento de tiempo servido fuera del Poder Judicial aprobado por el Consejo Superior de la Corte Suprema de Justicia, a servidores judiciales activos, para efectos de jubilación.
B35: 16.2 Aportes por cobrar al Patrono
B36: Se compone de las sumas pendientes de cobrar por aportes que recibe el Fondo de Jubilaciones y Pensiones del Estado en su calidad de patrono.
B38: 16.3 Aportes por cobrar al Estado
B39: Este grupo lo componen las sumas pendientes de cobrar por aportes al Estado que recibe el Fondo de Jubilaciones y Pensiones.
B40: 16.4 Otros aportes por cobrar
B41: 16.4 .1 Sumas canceladas de más a Jubilados y Pensionados
B43: • Por fallecimiento: Dineros girados de más a jubilados y pensionados fallecidos, donde la fecha de su defunción no fue conocida oportunamente. Es importante anotar que en estos casos el Macroproceso Financiero Contable realiza como uno de los mecanismos alternativos para la recuperación de las sumas giradas en demasía, una “Acta de autorización de rebajo”, mediante la cual los beneficiarios al Fondo de Socorro Mutuo designados por el jubilado fallecido, autorizan voluntariamente la deducción de ese beneficio, de las sumas pagadas de más por el Fondo de Jubilaciones. Dicha deducción se realiza solo con el consentimiento de los causahabientes, los cuales acceden a honrar las obligaciones del jubilado fallecido. Para los casos en donde el procedimiento no ha resultado factible, se analiza el caso y se eleva a conocimiento de las instancias correspondientes.
B45: • Estudios por sumas canceladas de más a jubilados y pensionados: Además se registran las sumas canceladas de más por conceptos diversos, entre los cuales los más relevantes son los montos pagados de más a jubilados que en determinado momento ejercieron un puesto en el Sector Público percibiendo otro sueldo del Estado, de sus bancos, de sus instituciones, de las municipalidades, de las juntas de educación y de las empresas de economía mixta, a los cuales se les suspendió el beneficio del Fondo de Jubilaciones tardíamente, girándoseles recursos en demasía que no les correspondía, de conformidad con lo que reza el artículo 234 de la Ley Orgánica del Poder Judicial.
B48: 16.4.2 Aportes Reconocimiento de Tiempo Servido
B49: Corresponde a las contribuciones por cobrar, como resultado del reconocimiento de tiempo servido fuera del Poder Judicial aprobado por el Consejo Superior de la Corte Suprema de Justicia, a servidores judiciales activos y jubilados o pensionados que asumen la deuda de un ex jubilado, según el artículo 231 de la Ley Orgánica del Poder Judicial.
B51: 16.4.3 Otros aportes por cobrar a Entidades Deductoras
B52: Corresponde a cuentas por cobrar a las entidades deductoras por conceptos diversos entre los cuales los más relevantes son producto de:
B54: · La anulación de pagos por concepto de asignaciones por exclusión de beneficiarios del Fondo (fallecimiento, mayoría de edad, matrimonio o cuando el beneficiario se encuentra laborando para otra Institución del Estado mientras recibía el beneficio de su jubilación por parte de este Fondo)
B56: · Diferencias en la aplicación de ajustes en los montos de las jubilaciones y pensiones que corresponden a deducciones en planilla que ya han sido giradas a dichas Entidades, cuando el Fondo se entera del suceso.

Sheet Nota 17
B2: Nota 17:
B3: INTANGIBLES
B5: =+'Nota 16'!B5:J5 -> al 30 de Noviembre de 2018
B7: Detalle | D7: Monto | F7: Amortización | H7: Total
B8: Sistema inversiones "Internet Systems Development Insyde S.A" | D8: 7618670 | F8: -7618670 | H8: 0
B11: Nota:
B12: Corresponde al registro de la compra del Sistema de Inversiones a la empresa Internet Systems Development Insyde S.A. con un valor de $14,750.00, valorado al tipo de cambio de la fecha de adquisición del activo (15 de agosto de 2007) de ¢516.52, para un total de ¢7,618,670. A dicho monto se descuenta la amortización acumulada al cierre del presente mes que asciende a ¢7,618,670 para un activo neto de ¢0.00. La vida útil del sistema en mención es de 5 años y considerando que fue registrado en setiembre del 2007 se encuentra depreciado en su totalidad, no obstante, a la fecha de este informe se encuentra en funcionamiento. En el periodo comprendido entre el 15 de julio a 12 de diciembre del 2011 la Dirección de Tecnología de Información realizó mejoras al sistema de Inversiones por la suma de ¢1.673.895. Lo anterior, de acuerdo con la información suministrada por la Dirección de Tecnología de la Información, mediante correo electrónico del 27 de abril del 2017 y oficio 1635-DTI-2017, dicho monto se encuentra registrado actualmente en los registros contables del Poder Judicial por igual suma. Con oficio 425-SC-2015 de 26 de agosto del 2015, se realizó la consulta a la Superintendencia de Pensiones (SUPEN) sobre la forma de registro contable de la información suministrada por la Dirección de Tecnología de Información, en virtud de que, en el Manual de Cuentas para el Régimen de Capitalización Colectiva emitido por dicha Superintendencia, no se observa alguna cuenta contable para el registro de la reevaluación de activos intangibles. La SUPEN ante la consulta realizada, indicó lo siguiente: “[…] conforme lo establecido en las Normas internacionales de Información Financiera (NIIF), se le comunica que no existe forma alguna de atribuir costo a un activo intangible luego del final de su vida útil: aunque esté en operación y generando beneficios, su valor en libros deberá seguir siendo cero…”

Sheet Nota 18
C2: Nota 18:
C4: Retenciones A Pensionados
C6: =+'Nota 17'!B5 -> al 30 de Noviembre de 2018
C9: Comprende las retenciones mensuales aplicadas en la planilla de jubilados y pensionados judiciales correspondientes a entidades deductoras, que realiza el Fondo a sus distintos beneficiarios, las cuales en el caso de la retención del impuesto sobre la renta y la cuota obrera por enfermedad y maternidad son honradas hasta el mes siguiente de su aplicación.
C12: RETENCIONES A JUBILADOS Y PENSIONADOS | E12: TOTAL
C14: Impuesto Sobre La Renta | E14: 428742677.2
C15: Caja Costarricense Seguro Social | E15: 293430371.5
C16: Otras retenciones | E16: 0
C18: TOTAL DE RETENCIONES A JUBILADOS Y PENSIONADOS | E18: =SUM(E14:E17) -> 722173048.6

Sheet Nota 19
B2: Nota 19:
B4: Obligaciones Por Liquidar Empleados y Exempleados
B6: =+'Nota 18'!C6 -> al 30 de Noviembre de 2018
B8: En esta cuenta se registran sumas sujetas a devolución por parte del Fondo de Jubilaciones y Pensiones que corresponden a pagos recibidos de más en la cancelación de obligaciones por cobrar por reconocimiento de tiempo servido fuera del Poder Judicial, derivados por el traslado de cuotas que realiza la Caja Costarricense del Seguro Social u otro régimen de pensiones hacia el Fondo de Jubilaciones, las cuales deben abonarse a las cuentas de los servidores judiciales, sin embargo, algunos de esos traslados ingresan cuando ya el servidor ha cancelado la deuda, por lo que se genera un pasivo a favor de éste.
B11: OBLIGACIONES POR LIQUIDAR EMPL. Y EXEMPL. | D11: TOTAL
B13: VCLO | D13: 64093.81
B14: GGMJ | D14: 312632.7
B15: JCVA | D15: 7228.48
B16: LFBV | D16: 51606.41
B17: CASS | D17: 133044.37
B19: OBLIGACIONES POR LIQUIDAR EMPL. Y EXEMPL. | D19: =SUM(D13:D18) -> 568605.77

Sheet Nota 20
B2: Nota 20:
B4: Obligaciones Transitorias por Liquidar
B6: =+'Nota 19'!B6:D6 -> al 30 de Noviembre de 2018
B9: En esta se registran sumas transitorias que deben liquidarse oportunamente y se compone de los siguientes rubros:
B11: Obligaciones Transitorias por Liquidar | D11: Saldo
B13: Benef. no retirados y por fallecimiento | D13: 59008492.95
B14: Sumas en transito por aclarar | D14: 2766747
B15: Instituciones Financieras -Banco de Costa Rica | D15: 49693.56
B16: Institucione Financieras Banco Popular ¢ | D16: 498197.34
B17: *Intituciones Gubernamentales-Poder Judicial-¢ | D17: 0
B18: Instituciones Gubernamentales-Caja Costarricense Seguro Social | D18: 3796451.36
B19: Anejud | D19: 308179.7
B20: Otros-Errores Bancarios | D20: 16562159.07
B21: Transitoria de deducción | D21: 1194442.36
B22: Aporte Junta Administradora FJP | D22: 598934126.7
B23: *Aporte Junta Administradora FJP - Jubilados y Pensionados | D23: 182882504.1
B24: Instituciones Financieras-Banco Popular $ | D24: 232250.73
B26: Total Obligaciones Transitorias por Liquidar | D26: =SUM(D13:D24) -> 866233244.9
B29: * Nota 1: Mediante la publicación de la Ley 9544, se aplica la reforma al capítulo IV, art 239, referente a la comisión por gastos administrativos, la cua indica: " Surgirá de deducir un cinco por mil de los sueldos de que devengen los servidores judicial, así como de las jubilaciones y las pensiones a cargo del Fondo. Con estos recursos se pagarán las dietas de los miembros de la Junta Administradora, los salarios de su personal y, en general, sus gastos administrativos...", dicho aporte dio inicio a partir del 22/05/2018.

Sheet Nota 21
B2: Nota 21:
B4: Cotización Seguro De Enfermedad y Maternidad
B6: =+'Nota 20'!B6:D6 -> al 30 de Noviembre de 2018
B9: Este pasivo se conforma por la cuota patronal del 8.75% que el Fondo de Jubilaciones y Pensiones debe pagar mensualmente a la Caja Costarricense de Seguro Social (C.C.S.S.), según lo estipulado en el artículo 62 del Reglamento del Seguro Salud.
B11: Entidad | D11: Porcentaje | F11: Monto
B12: Caja Costarricense del Seguro Social | D12: 0.0875 | F12: 513509114.7

Sheet Nota 22
B2: Nota 22:
B3: PROVISIONES PARA PENSIONES EN CURSO DE PAGO
B5: =+'Nota 21'!B6:F6 -> al 30 de Noviembre de 2018
B7: En esta cuenta se registra la totalidad de los recursos acumulados generados de las actividades del Fondo de Jubilaciones y Pensiones provenientes en su mayoría de los aportes recibidos de las cuotas obrero patronales-estatales, así como de los intereses netos ganados en inversiones, con el fin de atender las obligaciones que se deriven de los beneficios establecidos reglamentariamente para los jubilados y pensionados actuales así como de los nuevos jubilados y pensionados.
B10: Nota | D10: Sub-nota | F10: APORTES POR COBRAR | H10: Detalle | J10: Total
B12: 22.1 | F12: Recursos recibido de reservas en formación | J12: 1.043286404e+12
B13: 22.2 | F13: (Menos) Pago plan de beneficios | J13: 5.069040569e+11
D14: 22.2.1 | F14: Traslados a otros regímenes | H14: 547740447
F16: TOTAL | J16: =+J12-J13 -> 5.363823473e+11

Sheet Nota 23
B2: Nota 23:
B4: CUENTAS DE ORDEN DEUDORAS Y ACREDORAS
B6: =+'Nota 22'!B5:J5 -> al 30 de Noviembre de 2018
B9: En esta cuenta se registran los saldos de las cuentas por cobrar por concepto de reconocimiento de tiempo servido en otras dependencias o instituciones públicas, de aquellos servidores en condición de propietarios que renunciaron al Poder Judicial.
B11: Concepto | D11: Monto
B12: Cuentas por cobrar por reconocimiento de tiempo servido en otras dependencias o instituciones públicas, de aquellos servidores en condición de propietarios que renunciaron al Poder Judicial. | D12: 291806472.8
